bitfinex-derivatives/quotes_BTCF0:USTF0_20250811
["timestamp","ask_amount","ask_price","bid_price","bid_amount"]
[1754920649339,0.00015891,120030.0,120020.0,1.07169161]
[1754920649543,0.93331891,120030.0,120020.0,1.07169161]
[1754920649945,0.08348401,120030.0,120020.0,1.07169161]
[1754920650242,1.01636401,120030.0,120020.0,1.07169161]
[1754920651049,1.02236401,120030.0,120020.0,1.07269161]
[1754920651542,0.08948401,120030.0,120020.0,0.6240087]
[1754920651752,1.02240401,120030.0,120020.0,0.2632087]
[1754920652045,1.02184401,120030.0,120020.0,0.2317187]
[1754920652440,1.03032054,120030.0,120020.0,0.2317187]
[1754920653241,1.02832054,120030.0,120020.0,0.1932187]
[1754920654348,1.02832054,120030.0,120020.0,0.2307187]
[1754920654349,1.03032054,120030.0,120020.0,0.2307187]
[1754920655054,1.03032054,120030.0,120020.0,0.2622087]
[1754920655459,1.03032054,120030.0,120020.0,0.3621087]
[1754920655659,1.03032054,120030.0,120020.0,0.7229087]
[1754920656056,1.03032054,120030.0,120020.0,0.3621087]
[1754920658249,1.03132054,120030.0,120020.0,0.3621087]
[1754920659162,1.03132054,120030.0,120020.0,0.2227723]
[1754920659763,1.03132054,120030.0,120020.0,0.2227722]
[1754920661264,1.03132054,120030.0,120020.0,0.13944]
[1754920661762,0.90838454,120030.0,120020.0,0.0999]
[1754920661960,1.83746454,120030.0,120020.0,0.0999]
[1754920662363,1.83706454,120030.0,120020.0,0.0999]
[1754920662560,1.38838163,120030.0,120020.0,0.13944]
[1754920662755,1.38838163,120030.0,120020.0,0.2227723]
[1754920663060,1.38818163,120030.0,120020.0,0.13944]
[1754920663265,1.38810163,120030.0,120020.0,0.0999]
[1754920663559,0.45978712,120030.0,120020.0,0.13944]
[1754920663755,1.38794163,120030.0,120020.0,0.13944]
[1754920665361,1.83598454,120030.0,120020.0,0.0999]
[1754920665563,1.07501654,120030.0,120020.0,0.0999]
[1754920665763,2.00261654,120030.0,120020.0,0.0999]
[1754920666170,1.07501654,120030.0,120020.0,0.0999]
[1754920666473,2.00257654,120030.0,120020.0,0.0999]
[1754920666766,2.00233654,120030.0,120020.0,0.0999]
[1754920667866,1.07507838,120030.0,120020.0,0.0999]
[1754920668069,2.00190089,120030.0,120020.0,0.0999]
[1754920668264,2.00173075,120030.0,120020.0,0.0999]
[1754920668460,1.07507783,120030.0,120020.0,0.0999]
[1754920668663,2.00149654,120030.0,120020.0,0.0999]
[1754920669070,1.55281363,120030.0,120020.0,0.0999]
[1754920669270,1.55281363,120030.0,120020.0,0.13709]
[1754920669466,1.02510163,120030.0,120020.0,0.3555724]
[1754920669772,0.09890163,120030.0,120020.0,0.80425531]
[1754920669977,1.02514163,120030.0,120020.0,0.80425531]
[1754920670665,1.0252431,120030.0,120020.0,0.7163724]
[1754920670866,1.0252431,120030.0,120020.0,0.3555724]
[1754920671669,1.47382454,120030.0,120020.0,0.13709]
[1754920672270,1.83462454,120030.0,120020.0,0.13709]
[1754920672664,1.83462454,120030.0,120020.0,0.2204224]
[1754920672665,1.02514163,120030.0,120020.0,0.2204224]
[1754920672975,1.38594163,120030.0,120020.0,0.2204224]
[1754920673279,1.38594163,120030.0,120020.0,0.2553924]
[1754920673474,1.38594163,120030.0,120020.0,0.13709]
[1754920675172,1.38601489,120030.0,120020.0,0.13709]
[1754920675476,1.38594163,120030.0,120020.0,0.13709]
[1754920676475,1.38594163,120030.0,120020.0,0.2204227]
[1754920676682,1.38594163,120030.0,120020.0,0.2553927]
[1754920676885,1.38594163,120030.0,120020.0,0.3314327]
[1754920677076,1.38594163,120030.0,120020.0,0.3555727]
[1754920677583,1.38594163,120030.0,120020.0,0.27224]
[1754920678277,1.38594163,120030.0,120020.0,0.3555727]
[1754920679078,1.38594163,120030.0,120020.0,0.2909227]
[1754920679278,1.38594163,120030.0,120020.0,0.3555727]
[1754920679475,1.38594163,120030.0,120020.0,0.27224]
[1754920679673,1.02520429,120030.0,120020.0,0.3555727]
[1754920679882,1.02521172,120030.0,120020.0,0.3555727]
[1754920680076,1.02520619,120030.0,120020.0,0.3555727]
[1754920680272,1.02514163,120030.0,120020.0,0.3555727]
[1754920680780,1.38594163,120030.0,120020.0,0.3555727]
[1754920681476,1.02514163,120030.0,120020.0,0.3555727]
[1754920682576,1.02522964,120030.0,120020.0,0.3555727]
[1754920682783,1.38602964,120030.0,120020.0,0.3555727]
[1754920683086,1.02522964,120030.0,120020.0,0.3555727]
[1754920683687,1.38602964,120030.0,120020.0,0.3555727]
[1754920684390,1.83471255,120030.0,120020.0,0.13709]
[1754920684582,1.83462454,120030.0,120020.0,0.0999]
[1754920685584,1.02514163,120030.0,120020.0,0.220423]
[1754920685888,1.01938163,120030.0,120020.0,0.355573]
[1754920686189,1.38018163,120030.0,120020.0,0.27224]
[1754920687182,1.38025511,120030.0,120020.0,0.27224]
[1754920687382,1.38025882,120030.0,120020.0,0.27224]
[1754920687575,1.38018163,120030.0,120020.0,0.27224]
[1754920689084,0.45970163,120030.0,120020.0,0.3555731]
[1754920689282,1.01866163,120030.0,120020.0,0.80425601]
[1754920689587,0.93539808,120030.0,120020.0,0.80425601]
[1754920689992,0.93539808,120030.0,120020.0,0.3555731]
[1754920690177,0.93539808,120030.0,120020.0,0.80425601]
[1754920691278,0.93539808,120030.0,120020.0,0.3555731]
[1754920691480,0.93539808,120030.0,120020.0,0.7163731]
[1754920691880,0.93539808,120030.0,120020.0,1.16505601]
[1754920692480,0.92692155,120030.0,120020.0,1.16505601]
[1754920692682,0.92492155,120030.0,120020.0,1.16505601]
[1754920692880,0.92692155,120030.0,120020.0,1.16505601]
[1754920693692,0.92592155,120030.0,120020.0,0.7163731]
[1754920693883,0.92592155,120030.0,120020.0,1.16505601]
[1754920694290,0.93433747,120030.0,120020.0,0.7163731]
[1754920694885,0.93033747,120030.0,120020.0,0.7163731]
[1754920695091,1.01866357,120030.0,120020.0,0.3555731]
[1754920697181,0.93533747,120030.0,120020.0,0.3555731]
[1754920697988,0.93533747,120030.0,120020.0,0.7163731]
[1754920698192,0.00716155,120030.0,120020.0,1.16505601]
[1754920698593,0.92316155,120030.0,120020.0,1.16505601]
[1754920699496,0.00716155,120030.0,120020.0,1.33168801]
[1754920699796,0.92268155,120030.0,120020.0,1.33168801]
[1754920700692,0.92268155,120030.0,120020.0,1.16505601]
[1754920701094,0.92268155,120030.0,120020.0,0.90949212]
[1754920701597,0.92268155,120030.0,120020.0,1.35817503]
[1754920701802,1.00600815,120030.0,120020.0,1.35817503]
[1754920702198,1.00600815,120030.0,120020.0,0.90949212]
[1754920702400,1.00600815,120030.0,120020.0,0.7163731]
[1754920702600,1.00400815,120030.0,120020.0,0.7163731]
[1754920702901,0.00516155,120030.0,120020.0,1.16505601]
[1754920703201,0.91944155,120030.0,120020.0,1.16505601]
[1754920703403,0.91744155,120030.0,120020.0,1.16505601]
[1754920703700,0.91544155,120030.0,120020.0,0.7163731]
[1754920703901,0.91544155,120030.0,120020.0,1.16505601]
[1754920703902,0.91940155,120030.0,120020.0,1.16505601]
[1754920704494,0.91916155,120030.0,120020.0,1.16505601]
[1754920705207,0.92016155,120030.0,120020.0,1.16505601]
[1754920705508,1.00348815,120030.0,120020.0,0.80425601]
[1754920705699,0.08948815,120030.0,120020.0,1.16505601]
[1754920705896,1.00284815,120030.0,120020.0,0.80425601]
[1754920706095,1.00284815,120030.0,120020.0,1.16505601]
[1754920706599,0.53817106,120030.0,120020.0,0.1832331]
[1754920706796,1.00248815,120030.0,120020.0,0.2196031]
[1754920707004,1.00248815,120030.0,120020.0,0.7115331]
[1754920707900,1.00248815,120030.0,120020.0,0.3507331]
[1754920708398,1.00248815,120030.0,120020.0,0.7115331]
[1754920708600,0.00616155,120030.0,120020.0,0.7115331]
[1754920708793,0.91908155,120030.0,120020.0,1.16021601]
[1754920708994,0.00616155,120030.0,120020.0,1.16021601]
[1754920709198,0.91836155,120030.0,120020.0,1.16021601]
[1754920709400,0.91836155,120030.0,120020.0,0.7115331]
[1754920709698,0.00616155,120030.0,120020.0,1.16021601]
[1754920709899,0.91836155,120030.0,120020.0,1.16021601]
[1754920710404,2.41836155,120030.0,120020.0,1.16021601]
[1754920710908,1.50516155,120030.0,120020.0,1.16021601]
[1754920711093,2.41712155,120030.0,120020.0,1.16021601]
[1754920711503,2.41612155,120030.0,120020.0,1.16021601]
[1754920712203,2.41712155,120030.0,120020.0,1.16021601]
[1754920712398,1.50516155,120030.0,120020.0,1.16021601]
[1754920712600,2.41620155,120030.0,120020.0,0.7115331]
[1754920713001,2.41612155,120030.0,120020.0,0.7115331]
[1754920713199,2.41612155,120030.0,120020.0,0.3507331]
[1754920713401,2.41612155,120030.0,120020.0,0.7115331]
[1754920713706,2.41612155,120030.0,120020.0,1.16021601]
[1754920713905,2.41612155,120030.0,120020.0,0.7115331]
[1754920714106,2.49644815,120030.0,120020.0,0.7115331]
[1754920714309,2.50044815,120030.0,120020.0,0.7115331]
[1754920715009,2.50044815,120030.0,120020.0,1.16021601]
[1754920715210,2.50044815,120030.0,120020.0,0.7115331]
[1754920715506,2.50044815,120030.0,120020.0,1.16021601]
[1754920715507,1.50616155,120030.0,120020.0,1.16021601]
[1754920715706,2.41620155,120030.0,120020.0,1.16021601]
[1754920719312,2.41620155,120030.0,120020.0,1.35333503]
[1754920719512,2.41620155,120030.0,120020.0,0.90465212]
[1754920719711,2.41620155,120030.0,120020.0,1.35333503]
[1754920719902,1.50616155,120030.0,120020.0,0.90465212]
[1754920720104,2.41472155,120030.0,120020.0,1.35333503]
[1754920721300,1.50616155,120030.0,120020.0,1.35333503]
[1754920721506,2.41420155,120030.0,120020.0,1.35333503]
[1754920721709,2.41420155,120030.0,120020.0,1.16021601]
[1754920721912,2.41420155,120030.0,120020.0,1.35347767]
[1754920724214,2.41420155,120030.0,120020.0,0.90479476]
[1754920724513,2.41420155,120030.0,120020.0,1.35347767]
[1754920724909,2.41420155,120030.0,120020.0,0.90479476]
[1754920725215,2.41420155,120030.0,120020.0,1.35347767]
[1754920726617,2.41420155,120030.0,120020.0,1.28815767]
[1754920727318,1.50616155,120030.0,120020.0,1.28815767]
[1754920727511,0.91220155,120030.0,120020.0,1.28815767]
[1754920728012,0.00616155,120030.0,120020.0,1.09489601]
[1754920728415,1.15188,120060.0,120040.0,0.2499579]
[1754920728611,1.15188,120060.0,120050.0,1.08602033]
[1754920728912,2.65188,120060.0,120050.0,1.18774033]
[1754920729119,3.55752,120060.0,120050.0,1.18774033]
[1754920729317,3.55758484,120060.0,120050.0,1.63642324]
[1754920729614,2.40580484,120060.0,120050.0,1.28764033]
[1754920729811,2.40780484,120060.0,120050.0,1.09441671]
[1754920730008,1.50216484,120060.0,120050.0,1.09441671]
[1754920730211,2.40728484,120060.0,120050.0,1.09441671]
[1754920730516,2.40728484,120060.0,120050.0,1.28738304]
[1754920730716,1.50216484,120060.0,120050.0,1.28738304]
[1754920730912,0.00216484,120060.0,120050.0,1.73606595]
[1754920731113,0.90704484,120060.0,120050.0,1.28738304]
[1754920731512,4e-08,120060.0,120050.0,1.90265795]
[1754920731716,1.51264,120100.0,120080.0,0.1665789]
[1754920731916,1.15184,120100.0,120090.0,0.53196901]
[1754920732107,1.2351192,120100.0,120090.0,0.1191961]
[1754920732316,2.5003192,120100.0,120090.0,0.0832861]
[1754920732514,2.50037911,120100.0,120090.0,0.0832861]
[1754920732715,2.50047911,120100.0,120090.0,0.0832861]
[1754920732918,2.56676383,120100.0,120090.0,0.0832861]
[1754920733515,2.21429107,120100.0,120090.0,0.0832861]
[1754920733716,1.30989107,120100.0,120090.0,0.1191961]
[1754920733923,2.21425107,120100.0,120090.0,0.5302561]
[1754920734220,2.21373107,120100.0,120090.0,0.5938961]
[1754920734426,2.21373107,120100.0,120090.0,1.04257901]
[1754920735218,1.30989147,120100.0,120090.0,0.68177901]
[1754920735420,1.30989147,120100.0,120090.0,0.1971861]
[1754920735722,2.57397147,120100.0,120090.0,0.1971861]
[1754920735922,1.67069147,120100.0,120090.0,0.1971861]
[1754920736119,2.11931447,120100.0,120090.0,0.1139]
[1754920736322,2.33739032,120100.0,120090.0,0.1139]
[1754920736521,3.24029765,120100.0,120090.0,0.1139]
[1754920736713,2.7915984,120100.0,120090.0,0.1139]
[1754920736913,2.74153692,120100.0,120090.0,0.1139]
[1754920737217,2.74133692,120100.0,120090.0,0.1139]
[1754920737422,2.74121692,120100.0,120090.0,0.1139]
[1754920737924,3.18989983,120100.0,120090.0,0.1139]
[1754920739422,2.74121692,120100.0,120090.0,0.1139]
[1754920739627,3.18989983,120100.0,120090.0,0.1139]
[1754920740023,3.18997808,120100.0,120090.0,0.1139]
[1754920740225,3.23997935,120100.0,120090.0,0.1139]
[1754920740425,3.2399626,120100.0,120090.0,0.1139]
[1754920740627,3.23989983,120100.0,120090.0,0.1139]
[1754920741544,2.33729983,120100.0,120090.0,0.1139]
[1754920741830,0.0833146,120050.0,120040.0,0.7299907]
[1754920742029,0.98483004,120050.0,120040.0,0.8637807]
[1754920743335,0.90151544,120050.0,120040.0,1.31246361]
[1754920743635,0.90551544,120050.0,120040.0,1.31246361]
[1754920743934,0.98883004,120050.0,120040.0,1.31246361]
[1754920744233,0.98983004,120050.0,120040.0,1.31246361]
[1754920744625,0.98983004,120050.0,120040.0,0.8342307]
[1754920744825,0.98983004,120050.0,120040.0,0.8637807]
[1754920745135,0.99732478,120050.0,120040.0,0.7804592]
[1754920745536,0.99700478,120050.0,120040.0,0.7804592]
[1754920745836,0.91369018,120050.0,120040.0,0.7804592]
[1754920746027,0.01345018,120050.0,120040.0,0.7804592]
[1754920746234,0.91357018,120050.0,120040.0,1.22914211]
[1754920746430,0.90531544,120050.0,120040.0,1.22914211]
[1754920746631,0.98863204,120050.0,120040.0,0.7804592]
[1754920746832,0.98863204,120050.0,120040.0,1.22914211]
[1754920747836,0.90531544,120050.0,120040.0,1.22914211]
[1754920748038,0.98863314,120050.0,120040.0,1.22914211]
[1754920748645,0.98791314,120050.0,120040.0,1.22914211]
[1754920749045,0.98791314,120050.0,120040.0,0.7146492]
[1754920749242,0.98791314,120050.0,120040.0,0.7509092]
[1754920749444,0.98791314,120050.0,120040.0,0.7804592]
[1754920749644,0.08851314,120050.0,120040.0,0.7804592]
[1754920749946,0.98759314,120050.0,120040.0,0.7804592]
[1754920750248,0.44931314,120050.0,120040.0,0.1643249]
[1754920750443,1.79674061,120050.0,120040.0,0.03591]
[1754920750833,0.4492177,120050.0,120040.0,0.03591]
[1754920751141,1.3478977,120050.0,120040.0,0.1192349]
[1754920751643,1.3478977,120050.0,120040.0,0.1554949]
[1754920751844,0.4492177,120050.0,120040.0,0.07217]
[1754920752044,0.0833249,120040.0,120030.0,0.1192376]
[1754920752240,0.08349395,120040.0,120030.0,0.0833276]
[1754920752449,0.98177395,120040.0,120030.0,0.1554976]
[1754920752633,0.98177395,120040.0,120030.0,0.1850476]
[1754920753347,0.98677395,120040.0,120030.0,0.1850476]
[1754920753549,0.98645395,120040.0,120030.0,0.1554976]
[1754920753755,0.98645395,120040.0,120030.0,0.1192376]
[1754920753941,1.34717395,120040.0,120030.0,0.03591]
[1754920754246,0.0833319,120030.0,120020.0,0.2859246]
[1754920754447,0.0834319,120030.0,120020.0,0.3605246]
[1754920754647,0.0834319,120030.0,120020.0,0.3848846]
[1754920754843,0.0834319,120030.0,120020.0,0.4236446]
[1754920755345,0.44432194,120030.0,120020.0,0.03876]
[1754920755544,0.44432194,120030.0,120020.0,0.1220988]
[1754920755738,1.34176194,120030.0,120020.0,0.1561488]
[1754920755942,1.34176194,120030.0,120020.0,0.2336688]
[1754920756144,0.98096194,120030.0,120020.0,0.2580288]
[1754920756344,0.44832194,120030.0,120020.0,0.2580288]
[1754920756544,1.34552194,120030.0,120020.0,0.2580288]
[1754920756954,1.34952194,120030.0,120020.0,0.2580288]
[1754920757445,0.45232194,120030.0,120020.0,0.2580288]
[1754920757647,1.41517208,120030.0,120020.0,0.2580288]
[1754920757843,0.51797208,120030.0,120020.0,0.2580288]
[1754920758044,1.41469208,120030.0,120020.0,0.2580288]
[1754920760645,1.41469208,120030.0,120020.0,0.3579288]
[1754920760846,0.51797208,120030.0,120020.0,0.13866]
[1754920761047,1.41385208,120030.0,120020.0,0.13866]
[1754920761348,1.41376204,120030.0,120020.0,0.13866]
[1754920762150,0.51788204,120030.0,120020.0,0.2219988]
[1754920762350,1.41340204,120030.0,120020.0,0.3579288]
[1754920762648,1.41336204,120030.0,120020.0,0.3579288]
[1754920763049,1.41332204,120030.0,120020.0,0.3579288]
[1754920763351,1.05244618,120030.0,120020.0,0.3579288]
[1754920763647,1.05240618,120030.0,120020.0,0.3579288]
[1754920764355,1.05240618,120030.0,120020.0,0.73973578]
[1754920764847,0.15716618,120030.0,120020.0,0.73973578]
[1754920765052,1.05236618,120030.0,120020.0,0.3579288]
[1754920765249,0.15716618,120030.0,120020.0,0.3579288]
[1754920765451,1.05196618,120030.0,120020.0,0.3579288]
[1754920765854,1.05196618,120030.0,120020.0,0.1832388]
[1754920766155,1.05196618,120030.0,120020.0,0.2427988]
[1754920766349,1.05196618,120030.0,120020.0,0.3579288]
[1754920766550,1.05196618,120030.0,120020.0,0.73973578]
[1754920767152,1.05196618,120030.0,120020.0,0.3579288]
[1754920767356,0.15716618,120030.0,120020.0,0.3579288]
[1754920767557,1.05168618,120030.0,120020.0,0.27459]
[1754920767759,0.51796618,120030.0,120020.0,0.3579288]
[1754920768056,1.41200618,120030.0,120020.0,0.3579288]
[1754920769054,0.51796618,120030.0,120020.0,0.73973578]
[1754920769250,1.41152618,120030.0,120020.0,0.73973578]
[1754920769744,1.05072618,120030.0,120020.0,0.7187288]
[1754920769949,1.05072638,120030.0,120020.0,1.10053578]
[1754920770357,0.07383428,120030.0,120020.0,1.10053578]
[1754920770654,0.96699428,120030.0,120020.0,1.10053578]
[1754920771047,1.05032638,120030.0,120020.0,1.10053578]
[1754920771248,1.05032638,120030.0,120020.0,0.73973578]
[1754920771651,1.05032638,120030.0,120020.0,0.3579288]
[1754920772160,1.41112638,120030.0,120020.0,0.27459]
[1754920772358,1.41112638,120030.0,120020.0,0.3265491]
[1754920772558,1.41112638,120030.0,120020.0,0.24321]
[1754920772759,1.41112638,120030.0,120020.0,0.2924991]
[1754920773660,1.41112638,120030.0,120020.0,0.3579291]
[1754920774661,1.41112638,120030.0,120020.0,0.3265491]
[1754920775555,1.41112638,120030.0,120020.0,0.3579291]
[1754920776163,1.05032638,120030.0,120020.0,0.3579291]
[1754920778457,1.05032638,120030.0,120020.0,0.73973608]
[1754920778960,1.41112638,120030.0,120020.0,0.73973608]
[1754920779159,1.05032638,120030.0,120020.0,0.73973608]
[1754920780056,1.05032638,120030.0,120020.0,0.3579291]
[1754920780250,1.05032638,120030.0,120020.0,0.13866]
[1754920780457,1.79284922,120030.0,120020.0,0.0999]
[1754920780859,1.95948122,120030.0,120020.0,0.0999]
[1754920781557,1.95548122,120030.0,120020.0,0.0999]
[1754920781760,1.78884922,120030.0,120020.0,0.1019]
[1754920781960,1.4031311,120030.0,120020.0,0.1019]
[1754920782160,1.85069012,120030.0,120020.0,0.1069]
[1754920782555,1.85075362,120030.0,120020.0,0.1069]
[1754920782755,1.85079077,120030.0,120020.0,0.1069]
[1754920782968,1.85069012,120030.0,120020.0,0.1069]
[1754920785259,1.85079018,120030.0,120020.0,0.1069]
[1754920785461,1.85075533,120030.0,120020.0,0.1069]
[1754920785658,1.85069012,120030.0,120020.0,0.1069]
[1754920786369,1.40304224,120030.0,120020.0,0.1069]
[1754920786668,1.85069012,120030.0,120020.0,0.1069]
[1754920787264,0.95753012,120030.0,120020.0,0.1069]
[1754920787569,1.84625012,120030.0,120020.0,0.14492]
[1754920788367,1.84632606,120030.0,120020.0,0.14492]
[1754920788668,1.84625012,120030.0,120020.0,0.14492]
[1754920788868,1.84625012,120030.0,120020.0,0.17755]
[1754920789069,1.39860224,120030.0,120020.0,0.17755]
[1754920789266,1.84625012,120030.0,120020.0,0.17755]
[1754920789567,1.84625012,120030.0,120020.0,0.14492]
[1754920789568,0.95763072,120030.0,120020.0,0.14492]
[1754920789772,2.18900224,120030.0,120020.0,0.3562891]
[1754920789961,2.54987202,120030.0,120020.0,0.27295]
[1754920790159,2.54990197,120030.0,120020.0,0.27295]
[1754920790364,2.54987699,120030.0,120020.0,0.27295]
[1754920790670,2.54980224,120030.0,120020.0,0.3562889]
[1754920793066,2.54980224,120030.0,120020.0,0.27295]
[1754920794264,2.54980224,120030.0,120020.0,0.24321]
[1754920794471,2.54980224,120030.0,120020.0,0.27295]
[1754920794658,2.54986077,120030.0,120020.0,0.27295]
[1754920794858,2.54980224,120030.0,120020.0,0.3562889]
[1754920795062,2.54987009,120030.0,120020.0,0.3562889]
[1754920795262,2.54980224,120030.0,120020.0,0.3562889]
[1754920795961,2.18900224,120030.0,120020.0,0.3562889]
[1754920796362,1.21791014,120030.0,120020.0,1.16473678]
[1754920796564,2.10386877,120030.0,120020.0,1.16473678]
[1754920797170,2.10386877,120030.0,120020.0,0.90989997]
[1754920797472,2.10386877,120030.0,120020.0,1.35754785]
[1754920798269,2.10386877,120030.0,120020.0,1.16473678]
[1754920798872,2.10386877,120030.0,120020.0,0.7170889]
[1754920799067,2.10386877,120030.0,120020.0,1.16473678]
[1754920799268,0.95170877,120030.0,120020.0,1.16473678]
[1754920799671,0.06582877,120030.0,120020.0,1.16473678]
[1754920799970,0.95070877,120030.0,120020.0,1.16473678]
[1754920800674,0.95070877,120030.0,120020.0,1.35754785]
[1754920800976,0.95070877,120030.0,120020.0,1.57217985]
[1754920801170,1.5,120050.0,120040.0,0.0833256]
[1754920801364,2.4995086,120050.0,120040.0,1.05782348]
[1754920801770,2.4995086,120050.0,120040.0,0.6101756]
[1754920802170,2.49959165,120050.0,120040.0,0.6101756]
[1754920802477,2.53269165,120050.0,120040.0,0.6101756]
[1754920802670,2.53269165,120050.0,120040.0,0.99182644]
[1754920803275,2.53269165,120050.0,120040.0,0.99482644]
[1754920803574,2.53269165,120050.0,120040.0,1.09472644]
[1754920803969,1.64929165,120050.0,120040.0,1.09472644]
[1754920804177,2.41697305,120050.0,120040.0,1.09472644]
[1754920804378,2.50029175,120050.0,120040.0,1.09472644]
[1754920804769,2.53329175,120050.0,120040.0,1.09472644]
[1754920804977,2.53293175,120050.0,120040.0,1.09472644]
[1754920805174,2.53293175,120050.0,120040.0,0.7130756]
[1754920805375,1.64929175,120050.0,120040.0,0.7130756]
[1754920805977,2.53249175,120050.0,120040.0,1.09472644]
[1754920806277,1.64929175,120050.0,120040.0,1.09472644]
[1754920806572,2.41617305,120050.0,120040.0,1.09472644]
[1754920807476,2.49949125,120050.0,120040.0,1.09472644]
[1754920807775,2.46718125,120050.0,120040.0,1.09472644]
[1754920807976,2.49897125,120050.0,120040.0,1.09472644]
[1754920808177,2.49897125,120050.0,120040.0,0.7130756]
[1754920808478,1.61629125,120050.0,120040.0,1.09472644]
[1754920808670,2.53193125,120050.0,120040.0,0.7130756]
[1754920808871,2.53173125,120050.0,120040.0,1.09472644]
[1754920809678,2.44833305,120050.0,120040.0,0.7130756]
[1754920809980,2.53165115,120050.0,120040.0,0.7130756]
[1754920810167,0.00118305,120050.0,120040.0,2.00378528]
[1754920810372,0.88318305,120050.0,120040.0,2.19659635]
[1754920810966,0.00118305,120050.0,120040.0,2.19659635]
[1754920811568,0.00118305,120050.0,120040.0,2.00378528]
[1754920815375,0.11062305,120050.0,120040.0,0.6507056]
[1754920815578,0.19394115,120050.0,120040.0,0.6507056]
[1754920815880,1.43526115,120050.0,120040.0,0.1862256]
[1754920816181,0.55474115,120050.0,120040.0,0.1862256]
[1754920816382,1.43518115,120050.0,120040.0,0.1862256]
[1754920816574,1.43518115,120050.0,120040.0,0.2212256]
[1754920816781,1.07438115,120050.0,120040.0,0.2212256]
[1754920817185,1.07430115,120050.0,120040.0,0.96367644]
[1754920817484,1.07430115,120050.0,120040.0,0.60287644]
[1754920817789,1.07430115,120050.0,120040.0,0.68213644]
[1754920817983,1.07430115,120050.0,120040.0,0.3004856]
[1754920818283,1.07430115,120050.0,120040.0,0.2397456]
[1754920818584,1.07430115,120050.0,120040.0,0.2212256]
[1754920818979,0.93630894,120050.0,120040.0,0.1029]
[1754920819179,0.5546581,120050.0,120040.0,0.186225]
[1754920819478,1.81598894,120050.0,120040.0,0.186225]
[1754920819676,1.4343381,120050.0,120040.0,0.186225]
[1754920819875,0.5546581,120050.0,120040.0,0.186225]
[1754920820082,1.0733781,120050.0,120040.0,0.186225]
[1754920820682,1.0733781,120050.0,120040.0,0.68213584]
[1754920820985,1.07337948,120050.0,120040.0,0.347585]
[1754920821180,1.0732981,120050.0,120040.0,0.72923584]
[1754920821375,1.0732981,120050.0,120040.0,0.347585]
[1754920821680,1.0410681,120050.0,120040.0,0.347585]
[1754920821983,0.07839,120050.0,120040.0,0.72923584]
[1754920822178,0.95767057,120050.0,120040.0,0.72923584]
[1754920822377,0.95767057,120050.0,120040.0,1.09003584]
[1754920823283,0.00118057,120050.0,120040.0,1.47168668]
[1754920823892,0.00118057,120050.0,120040.0,1.63825123]
[1754920824185,0.00118057,120050.0,120040.0,1.32208342]
[1754920824689,0.00118057,120050.0,120040.0,1.15547542]
[1754920827385,0.00118057,120050.0,120040.0,0.87494955]
[1754920827592,0.00118057,120050.0,120040.0,1.32208342]
[1754920827786,0.00118057,120050.0,120040.0,0.87494955]
[1754920827985,0.87812,120070.0,120060.0,0.0833108]
[1754920828194,0.87776,120070.0,120060.0,1.21922217]
[1754920828594,1.4322717,120090.0,120080.0,0.0832969]
[1754920828887,1.4639417,120090.0,120080.0,0.2446569]
[1754920829088,1.46410304,120090.0,120080.0,0.2446569]
[1754920829292,2.34162304,120090.0,120080.0,0.2446569]
[1754920829680,2.34162304,120090.0,120080.0,0.1839169]
[1754920829884,3.23279247,120090.0,120080.0,0.0832969]
[1754920830387,2.79413955,120090.0,120080.0,0.0832969]
[1754920830583,2.43333955,120090.0,120080.0,0.0832969]
[1754920830889,2.79389955,120090.0,120080.0,0.1182969]
[1754920831084,2.79399845,120090.0,120080.0,0.1831969]
[1754920831284,2.79397144,120090.0,120080.0,0.1861969]
[1754920831482,1.91661955,120090.0,120080.0,0.1069]
[1754920831696,2.41375342,120090.0,120080.0,0.04468]
[1754920831989,2.41375342,120090.0,120040.0,0.47777737]
[1754920831990,0.0833178,120050.0,120040.0,0.47777737]
[1754920832184,0.44429786,120050.0,120040.0,0.2016437]
[1754920832389,1.32113786,120050.0,120040.0,0.2016437]
[1754920832585,1.32105786,120050.0,120040.0,0.2016437]
[1754920833892,1.32205786,120050.0,120040.0,0.2016437]
[1754920834588,0.08649786,120050.0,120040.0,0.2016437]
[1754920834793,0.87998006,120050.0,120040.0,0.3280037]
[1754920835184,0.00318006,120050.0,120040.0,0.77513757]
[1754920835392,0.87954006,120050.0,120040.0,1.13593757]
[1754920835587,0.00318006,120050.0,120040.0,1.13593757]
[1754920835787,0.87938006,120050.0,120040.0,1.13593757]
[1754920836089,0.00318006,120050.0,120040.0,1.13593757]
[1754920836289,0.87934006,120050.0,120040.0,1.13593757]
[1754920836498,0.00318006,120050.0,120040.0,1.13593757]
[1754920836990,0.87910006,120050.0,120040.0,1.13593757]
[1754920837196,0.87910006,120050.0,120040.0,0.6888037]
[1754920837591,0.00118006,120050.0,120040.0,1.13593757]
[1754920837895,0.87806006,120050.0,120040.0,1.13593757]
[1754920838095,0.87806006,120050.0,120040.0,1.14113757]
[1754920838292,0.87806006,120050.0,120040.0,0.6940037]
[1754920838496,0.87906006,120050.0,120040.0,1.14113757]
[1754920838793,0.87894006,120050.0,120040.0,1.14113757]
[1754920838989,0.00318006,120050.0,120040.0,1.30774557]
[1754920839596,0.00318006,120050.0,120040.0,1.14113757]
[1754920840088,0.01618006,120050.0,120040.0,1.14213757]
[1754920840897,0.89130006,120050.0,120040.0,1.14213757]
[1754920841390,0.01618006,120050.0,120040.0,1.14213757]
[1754920841586,0.89126006,120050.0,120040.0,1.14213757]
[1754920842588,0.2499416,120060.0,120040.0,1.22545977]
[1754920842794,0.35784425,120090.0,120070.0,0.3332037]
[1754920843094,0.29600735,120090.0,120080.0,0.69179047]
[1754920843304,1.08743045,120090.0,120080.0,0.69179047]
[1754920843594,1.08743045,120090.0,120080.0,0.3445566]
[1754920843796,1.08762001,120090.0,120080.0,0.3445566]
[1754920843992,1.00432381,120090.0,120080.0,0.3445566]
[1754920844201,0.92103051,120090.0,120080.0,0.3445566]
[1754920844400,0.92103051,120090.0,120080.0,0.79469047]
[1754920844592,0.91254956,120090.0,120080.0,0.79769047]
[1754920844800,0.9203745,120090.0,120080.0,0.79769047]
[1754920845201,0.91218956,120090.0,120080.0,0.79769047]
[1754920845493,0.91218956,120090.0,120080.0,1.15849047]
[1754920846099,0.03782956,120090.0,120080.0,1.15849047]
[1754920846301,0.01636956,120090.0,120080.0,1.16549047]
[1754920846599,0.00018956,120090.0,120080.0,1.16549047]
[1754920846799,0.87418956,120090.0,120080.0,1.16549047]
[1754920847200,0.87418956,120090.0,120080.0,1.16249047]
[1754920847395,0.87418956,120090.0,120080.0,1.17149047]
[1754920847996,0.97363966,120090.0,120080.0,0.7243566]
[1754920848195,0.89034956,120090.0,120080.0,1.17149047]
[1754920848606,0.97363966,120090.0,120080.0,1.17149047]
[1754920849103,0.99604966,120090.0,120080.0,1.17149047]
[1754920849300,0.12204966,120090.0,120080.0,0.3635566]
[1754920849506,0.12204966,120090.0,120080.0,0.3028166]
[1754920849804,0.99544966,120090.0,120080.0,0.3028166]